Workbook

Sheet 県下の犯罪情勢
B2: 《令和7年中における県内の犯罪情勢》 | O2: チェック用
B4: 罪 種 | D4: R7年中 | E4: R6年中 | F4: 増減数 | G4: 増減率 （％） | H4: 割合 (※） | P4: Ｒ７ | Q4: Ｒ６
O5: 入力認知件数 | P5: =D6 -> 7529 | Q5: =E6 -> 6722
B6: 刑法犯認知件数 | D6: 7529 | E6: 6722 | F6: =D6-E6 -> 807 | G6: =F6/E6*100 -> 12.00535555 | H6: - | O6: 項目計 | P6: =SUM(D7,D12,D18,D29,D32,D37,) -> 7529 | Q6: =SUM(E7,E12,E18,E29,E32,E37,R16) -> 6722
B7: 凶悪犯 | D7: =SUM(D8:D11) -> 98 | E7: =SUM(E8:E11) -> 79 | F7: =D7-E7 -> 19 | G7: =F7/E7*100 -> 24.05063291 | H7: =D7/D6*100 -> 1.301633683 | P7: =IF(P5=P6,"ＯＫ","やりなおし") -> ＯＫ | Q7: =IF(Q5=Q6,"ＯＫ","やりなおし") -> ＯＫ
C8: 殺人 | D8: 3 | E8: 9 | F8: =D8-E8 -> -6 | G8: =F8/E8*100 -> -66.66666667 | H8: =D8/D6*100 -> 0.03984592907
C9: 強盗 | D9: 10 | E9: 5 | F9: 5 | G9: =F9/E9*100 -> 100 | H9: =D9/D6*100 -> 0.1328197636
C10: 放火 | D10: 9 | E10: 4 | F10: 5 | G10: =F10/E10*100 -> 125 | H10: =D10/D6*100 -> 0.1195377872
C11: 不同意性交等 | D11: 76 | E11: 61 | F11: 15 | G11: =F11/E11*100 -> 24.59016393 | H11: =D11/D6*100 -> 1.009430203
B12: 粗暴犯 | D12: =SUM(D13:D17) -> 858 | E12: =SUM(E13:E17) -> 745 | F12: 113 | G12: =F12/E12*100 -> 15.16778523 | H12: =D12/D6*100 -> 11.39593572
C13: 凶器準備集合 | D13: 1 | E13: 0 | F13: 1 | G13: - | H13: 0.03
C14: 暴行 | D14: 450 | E14: 363 | F14: 87 | G14: 23.96694215 | H14: =D14/D6*100 -> 5.976889361
C15: 傷害 | D15: 293 | E15: 285 | F15: 8 | G15: 2.807017544 | H15: =D15/D6*100 -> 3.891619073
C16: 脅迫 | D16: 58 | E16: 57 | F16: 1 | G16: 1.754385965 | H16: =D16/D6*100 -> 0.7703546288
C17: 恐喝 | D17: 56 | E17: 40 | F17: 16 | G17: 40 | H17: =D17/D6*100 -> 0.7437906761
B18: 窃盗犯 | D18: =SUM(D19:D28) -> 4693 | E18: =SUM(E19:E28) -> 4386 | F18: 307 | G18: 6.999544004 | H18: =D18/D6*100 -> 62.33231505
C19: 空き巣 | D19: 87 | E19: 94 | F19: =D19-E19 -> -7 | G19: -7.446808511 | H19: =D19/D6*100 -> 1.155531943
C20: 忍込み | D20: 16 | E20: 23 | F20: -7 | G20: -30.43478261 | H20: =D20/D6*100 -> 0.2125116217
C21: 自動車盗 | D21: 18 | E21: 20 | F21: -2 | G21: -10 | H21: =D21/D6*100 -> 0.2390755744
C22: オートバイ盗 | D22: 205 | E22: 116 | F22: 89 | G22: 76.72413793 | H22: =D22/D6*100 -> 2.722805153
C23: 自転車盗 | D23: 1776 | E23: 1556 | F23: 220 | G23: 14.13881748 | H23: =D23/D6*100 -> 23.58879001
C24: ひったくり | D24: 5 | E24: 3 | F24: 2 | G24: 66.66666667 | H24: =D24/D6*100 -> 0.06640988179
C25: 車上ねらい | D25: 181 | E25: 164 | F25: 17 | G25: =F25/E25*100 -> 10.36585366 | H25: =D25/D6*100 -> 2.404037721
C26: 自販機ねらい | D26: 9 | E26: 13 | F26: -4 | G26: -30.76923077 | H26: =D26/D6*100 -> 0.1195377872
C27: 万引き | D27: 1075 | E27: 1002 | F27: 73 | G27: 7.285429142 | H27: =D27/D6*100 -> 14.27812458
C28: 窃盗犯その他 | D28: 1321 | E28: 1395 | F28: -74 | G28: -5.304659498 | H28: =D28/D6*100 -> 17.54549077
B29: 知能犯 | D29: =SUM(D30:D31) -> 774 | E29: =SUM(E30:E31) -> 547 | F29: 227 | G29: 41.49908592 | H29: =D29/D6*100 -> 10.2802497
C30: 詐欺 | D30: 717 | E30: 496 | F30: 221 | G30: 44.55645161 | H30: =D30/D6*100 -> 9.523177049
C31: 知能犯その他 | D31: 57 | E31: 51 | F31: 6 | G31: 11.76470588 | H31: =D31/D6*100 -> 0.7570726524
B32: 風俗犯 | D32: =SUM(D33:D36) -> 298 | E32: =SUM(E33:E36) -> 243 | F32: 55 | G32: 22.63374486 | H32: =D32/D6*100 -> 3.958028955
C33: 賭博 | D33: 5 | E33: 3 | F33: 2 | G33: 66.66666667 | H33: =D33/D6*100 -> 0.06640988179
C34: 不同意わいせつ | D34: 131 | E34: 96 | F34: 35 | G34: 36.45833333 | H34: =D34/D6*100 -> 1.739938903
C35: 公然わいせつ | D35: 21 | E35: 34 | F35: -13 | G35: -38.23529412 | H35: =D35/D6*100 -> 0.2789215035
C36: 風俗犯その他 | D36: 141 | E36: 110 | F36: 31 | G36: =F36/E36*100 -> 28.18181818 | H36: =D36/D6*100 -> 1.872758666 | Q36: R３ | R36: R４ | S36: Ｒ５ | T36: Ｒ６ | U36: Ｒ７
B37: その他の刑法犯 | D37: =SUM(D38:D40) -> 808 | E37: =SUM(E38:E40) -> 722 | F37: 86 | G37: 11.91135734 | H37: =D37/D6*100 -> 10.7318369 | P37: 刑法犯認知件数 | Q37: 5187 | R37: 4944 | S37: 6174 | T37: 6722 | U37: 7529
C38: 占有離脱物横領 | D38: 133 | E38: 105 | F38: 28 | G38: 26.66666667 | H38: =D38/D6*100 -> 1.766502856 | P38: 刑法犯検挙率 | Q38: 63.7 | R38: 58.8 | S38: 52.7 | T38: 51.8 | U38: 48.7
C39: 器物損壊 | D39: 412 | E39: 366 | F39: 46 | G39: 12.56830601 | H39: =D39/D6*100 -> 5.47217426
C40: その他 | D40: 263 | E40: 251 | F40: 12 | G40: 4.780876494 | H40: =D40/D6*100 -> 3.493159782
D41: ※ 割合：各罪種ごとの刑法犯認知件数に占める割合
B44: 《刑法犯認知件数・検挙率の推移（過去5年間）》
